[Event "9. Korbacher Open 2017"]
[Site "Korbach"]
[Date "2017.10.22"]
[Round "7"]
[White "Shkolnyk, Boris"]
[Black "Kirchner, Markus"]
[Result "0-1"]
[ECO "A80"]
[WhiteElo "1812"]
[BlackElo "1884"]
[Annotator "NA"]
[PlyCount "116"]
[EventDate "2017.??.??"]
[EventType "swiss"]
[EventCountry "GER"]
[SourceTitle "playchess.com"]
[Source "ChessBase"]
[SourceQuality "1"]
[TimeControl "40/5400+30:1800+30"]

1. d4 {[%emt 0:00:00]} f5 {[%emt 0:00:07]} 2. Bg5 {[%emt 0:03:02]} g6 {[%emt 0:00:21]} 3. Nc3 {[%emt 0:00:57]} Bg7 {[%emt 0:01:22]} 4. h4 {[%emt 0:01:56]} h6 {[%emt 0:00:48]} 5. Bf4 {[%emt 0:01:07]} Nf6 {[%emt 0:00:10]} 6. e3 {[%emt 0:04:39]} d6 {[%emt 0:00:48]} 7. Be2 {[%emt 0:02:51]} O-O {[%emt 0:01:20]} 8. Nh3 {[%emt 0:01:16]} Qe8 {[%emt 0:01:18]} 9. Qd3 {[%emt 0:04:05]} Nc6 {[%emt 0:01:47]} 10. O-O {[%emt 0:01:38]} e5 {[%emt 0:01:51]} 11. dxe5 dxe5 12. Bh2 {[%emt 0:03:09]} a6 {[%emt 0:01:28]} 13. Rfd1 {[%emt 0:07:21]} Be6 {[%emt 0:00:39]} 14. Qd2 {[%emt 0:00:28]} Qe7 {[%emt 0:01:25]} 15. a3 {[%emt 0:00:43]} Rad8 {[%emt 0:01:07]} 16. Qe1 {[%emt 0:03:33]} Nd5 {[%emt 0:03:08]} 17. Nxd5 {[%emt 0:01:22]} Rxd5 {[%emt 0:00:34]} 18. Bc4 {[%emt 0:01:56]} Rxd1 {[%emt 0:00:21]} 19. Bxe6+ {[%emt 0:00:10]} Qxe6 {[%emt 0:00:05]} 20. Rxd1 {[%emt 0:00:45]} Bf6 {[%emt 0:00:30]} 21. f3 {[%emt 0:03:49]} Qc4 {[%emt 0:02:09]} 22. Bg3 {[%emt 0:05:44]} Qxc2 {[%emt 0:02:01]} 23. Rd2 {[%emt 0:00:39]} Qb3 {[%emt 0:02:07]} 24. Bf2 {[%emt 0:04:33]} g5 {[%emt 0:01:47]} 25. hxg5 {[%emt 0:01:25]} hxg5 {[%emt 0:00:06]} 26. Bg3 {[%emt 0:05:29]} Qf7 {[%emt 0:03:10]} 27. Qd1 {[%emt 0:01:43]} Qe6 {[%emt 0:02:30]} 28. Qc2 {[%emt 0:07:41]} Kg7 {[%emt 0:00:30]} 29. Qd1 {[%emt 0:01:08]} Rf7 {[%emt 0:01:05]} 30. b4 {[%emt 0:04:17]} Na7 {[%emt 0:01:04]} 31. Qb1 {[%emt 0:01:18]} Nb5 {[%emt 0:02:07]} 32. a4 {[%emt 0:04:21]} Nd6 {[%emt 0:01:09]} 33. b5 {[%emt 0:03:34]} axb5 {[%emt 0:01:19]} 34. axb5 {[%emt 0:00:08]} Re7 {[%emt 0:00:46]} 35. Rc2 {[%emt 0:02:27]} b6 {[%emt 0:02:46]} 36. Rc6 {[%emt 0:00:44]} Qd5 {[%emt 0:01:17]} 37. Rxd6 {[%emt 0:00:44]} cxd6 {[%emt 0:00:58]} 38. Qxf5 {[%emt 0:00:50]} Qe6 {[%emt 0:00:14]} 39. Qc2 {[%emt 0:01:14]} d5 {[%emt 0:01:21]} 40. Nf2 {[%emt 0:00:58]} e4 {[%emt 0:32:50]} 41. fxe4 {[%emt 0:37:51]} dxe4 {[%emt 0:00:04]} 42. Nh3 {[%emt 0:01:15]} Qf5 {[%emt 0:06:32]} 43. Qe2 {[%emt 0:00:14]} Ra7 {[%emt 0:02:14]} 44. Kh2 {[%emt 0:05:29]} Ra5 {[%emt 0:02:08]} 45. Qh5 {[%emt 0:02:31]} Rxb5 {[%emt 0:03:10]} 46. Qe8 {[%emt 0:01:22]} Rc5 {[%emt 0:00:47]} 47. Nf2 {[%emt 0:00:00]} Rc8 {[%emt 0:00:00]} 48. Qa4 {[%emt 0:00:00]} b5 {[%emt 0:00:00]} 49. Qa7+ {[%emt 0:00:00]} Kg6 {[%emt 0:00:00]} 50. Qb7 {[%emt 0:00:00]} Re8 {[%emt 0:00:00]} 51. Qc6 {[%emt 0:00:00]} Re7 {[%emt 0:00:00]} 52. Qa8 {[%emt 0:00:00]} Qe6 {[%emt 0:00:00]} 53. Kg1 {[%emt 0:00:00]} b4 {[%emt 0:00:00]} 54. Qb8 {[%emt 0:00:00]} b3 {[%emt 0:00:00]} 55. Bd6 {[%emt 0:00:00]} Re8 {[%emt 0:00:00]} 56. Qb4 {[%emt 0:00:00]} b2 {[%emt 0:00:00]} 57. Kh2 {[%emt 0:00:00]} b1=Q {[%emt 0:00:00]} 58. Qxb1 {[%emt 0:00:00]} Qxd6+ {[%emt 0:00:00]} 0-1

[Event "9. Korbacher Open 2017"]
[Site "Korbach"]
[Date "2017.10.22"]
[Round "7"]
[White "Van de Griend, Johan"]
[Black "Deutsch, Christoph"]
[Result "1-0"]
[ECO "C44"]
[WhiteElo "1797"]
[BlackElo "1755"]
[Annotator "NA"]
[PlyCount "65"]
[EventDate "2017.??.??"]
[EventType "swiss"]
[EventCountry "GER"]
[SourceTitle "playchess.com"]
[Source "ChessBase"]
[SourceQuality "1"]
[TimeControl "40/5400+30:1800+30"]

1. e4 {[%emt 0:00:00]} e5 {[%emt 0:00:11]} 2. Nf3 {[%emt 0:00:00]} Nc6 {[%emt 0:00:08]} 3. d4 {[%emt 0:00:00]} exd4 {[%emt 0:00:17]} 4. Nxd4 {[%emt 0:00:00]} Nf6 {[%emt 0:00:20]} 5. Nc3 {[%emt 0:00:24]} Bb4 {[%emt 0:00:46]} 6. Nxc6 {[%emt 0:00:11]} bxc6 {[%emt 0:00:16]} 7. Bd3 {[%emt 0:00:13]} h6 {[%emt 0:00:59]} 8. O-O {[%emt 0:01:23]} O-O {[%emt 0:00:29]} 9. Bd2 {[%emt 0:02:19]} Re8 {[%emt 0:06:13]} 10. Re1 {[%emt 0:02:11]} d6 {[%emt 0:00:35]} 11. h3 {[%emt 0:05:09]} Bb7 {[%emt 0:04:26]} 12. a3 {[%emt 0:04:17]} Ba5 {[%emt 0:01:31]} 13. b4 {[%emt 0:02:50]} Bb6 {[%emt 0:00:36]} 14. Be3 {[%emt 0:00:15]} d5 {[%emt 0:03:36]} 15. Bxb6 {[%emt 0:02:23]} cxb6 {[%emt 0:01:48]} 16. e5 {[%emt 0:02:19]} Nd7 {[%emt 0:02:00]} 17. f4 {[%emt 0:00:48]} Qc7 {[%emt 0:01:16]} 18. Qg4 {[%emt 0:02:31]} Nf8 {[%emt 0:06:56]} 19. Rad1 {[%emt 0:03:35]} Re7 {[%emt 0:01:54]} 20. Ne2 {[%emt 0:05:50]} Rae8 {[%emt 0:06:52]} 21. Ng3 {[%emt 0:01:30]} Bc8 {[%emt 0:01:21]} 22. Bf5 {[%emt 0:06:57]} Ne6 {[%emt 0:00:43]} 23. Nh5 {[%emt 0:02:21]} Kh8 {[%emt 0:01:41]} 24. Bxe6 {[%emt 0:04:19]} fxe6 {[%emt 0:00:19]} 25. Qg6 {[%emt 0:01:26]} Rf7 {[%emt 0:01:57]} 26. Re3 {[%emt 0:01:31]} Qe7 {[%emt 0:06:59]} 27. Rg3 {[%emt 0:03:54]} Qf8 {[%emt 0:03:59]} 28. Re1 {[%emt 0:08:04]} Ree7 {[%emt 0:02:16]} 29. Rg4 {[%emt 0:04:16]} Bd7 {[%emt 0:01:26]} 30. Qd3 {[%emt 0:08:28]} Be8 {[%emt 0:01:45]} 31. Rf1 {[%emt 0:00:43]} Rf5 {[%emt 0:03:47]} 32. Ng3 {[%emt 0:01:11]} Rff7 {[%emt 0:00:15]} 33. Nh5 {[%emt 0:05:30]} 1-0

[Event "9. Korbacher Open 2017"]
[Site "Korbach"]
[Date "2017.10.22"]
[Round "7"]
[White "Rehbein, Ullrich"]
[Black "Basovskiy, Jana"]
[Result "1-0"]
[ECO "B40"]
[WhiteElo "1778"]
[BlackElo "1825"]
[Annotator "NA"]
[PlyCount "47"]
[EventDate "2017.??.??"]
[EventType "swiss"]
[EventCountry "GER"]
[SourceTitle "playchess.com"]
[Source "ChessBase"]
[SourceQuality "1"]
[TimeControl "40/5400+30:1800+30"]

1. e4 {[%emt 0:00:00]} c5 {[%emt 0:00:09]} 2. Nf3 {[%emt 0:00:16]} e6 {[%emt 0:00:06]} 3. c3 {[%emt 0:01:55]} Nf6 {[%emt 0:00:33]} 4. e5 {[%emt 0:00:27]} Nd5 {[%emt 0:00:04]} 5. Bc4 {[%emt 0:00:38]} Nc6 {[%emt 0:01:56]} 6. O-O {[%emt 0:01:18]} Nb6 {[%emt 0:01:40]} 7. Bb3 {[%emt 0:00:52]} d6 {[%emt 0:00:24]} 8. d4 {[%emt 0:00:53]} cxd4 {[%emt 0:00:30]} 9. cxd4 {[%emt 0:00:33]} Be7 {[%emt 0:02:03]} 10. Nc3 {[%emt 0:01:54]} O-O {[%emt 0:01:44]} 11. a4 {[%emt 0:07:00]} a6 {[%emt 0:02:27]} 12. Bf4 {[%emt 0:04:44]} Qc7 {[%emt 0:04:21]} 13. Rc1 {[%emt 0:03:06]} Qb8 {[%emt 0:00:45]} 14. Bc2 {[%emt 0:10:00]} Rd8 {[%emt 0:03:07]} 15. Ng5 {[%emt 0:08:19]} h6 {[%emt 0:04:42]} 16. Nxf7 {[%emt 0:05:01]} Kxf7 {[%emt 0:01:36]} 17. Qh5+ {[%emt 0:01:22]} Kf8 {[%emt 0:02:05]} 18. Bg6 {[%emt 0:01:23]} dxe5 {[%emt 0:03:30]} 19. Bxh6 {[%emt 0:00:35]} Bf6 {[%emt 0:00:34]} 20. Bxg7+ {[%emt 0:06:54]} Bxg7 {[%emt 0:03:54]} 21. Qf3+ {[%emt 0:00:35]} Ke7 {[%emt 0:00:08]} 22. Qf7+ {[%emt 0:02:00]} Kd6 {[%emt 0:00:08]} 23. Ne4+ {[%emt 0:01:54]} Kd5 {[%emt 0:00:09]} 24. Rc5+ {[%emt 0:00:25]} 1-0

[Event "9. Korbacher Open 2017"]
[Site "Korbach"]
[Date "2017.10.22"]
[Round "7"]
[White "Meyer, Marcel"]
[Black "Forgach, Andreas"]
[Result "1/2-1/2"]
[ECO "E97"]
[WhiteElo "1740"]
[BlackElo "1851"]
[Annotator "NA"]
[PlyCount "52"]
[EventDate "2017.??.??"]
[EventType "swiss"]
[EventCountry "GER"]
[SourceTitle "playchess.com"]
[Source "ChessBase"]
[SourceQuality "1"]
[TimeControl "40/5400+30:1800+30"]

1. d4 {[%emt 0:00:00]} Nf6 {[%emt 0:00:08]} 2. c4 {[%emt 0:00:00]} g6 {[%emt 0:00:09]} 3. Nc3 {[%emt 0:00:00]} Bg7 {[%emt 0:00:05]} 4. e4 {[%emt 0:00:02]} d6 {[%emt 0:00:16]} 5. Nf3 {[%emt 0:00:17]} O-O {[%emt 0:01:01]} 6. Be2 {[%emt 0:00:07]} e5 {[%emt 0:01:22]} 7. O-O {[%emt 0:00:14]} Nc6 {[%emt 0:02:24]} 8. d5 {[%emt 0:00:10]} Ne7 {[%emt 0:00:32]} 9. b4 {[%emt 0:00:08]} a5 {[%emt 0:01:58]} 10. Ba3 {[%emt 0:00:28]} axb4 {[%emt 0:02:15]} 11. Bxb4 {[%emt 0:00:22]} b6 {[%emt 0:00:50]} 12. a4 {[%emt 0:03:02]} Nd7 {[%emt 0:10:22]} 13. a5 {[%emt 0:01:12]} bxa5 {[%emt 0:20:49]} 14. Rxa5 {[%emt 0:00:22]} Rb8 {[%emt 0:10:22]} 15. Qa4 {[%emt 0:01:38]} Nb6 {[%emt 0:05:23]} 16. Qa3 {[%emt 0:04:14]} Bg4 {[%emt 0:02:35]} 17. c5 {[%emt 0:07:06]} Nbc8 {[%emt 0:05:47]} 18. Ra1 {[%emt 0:07:13]} Bxf3 {[%emt 0:02:58]} 19. Bxf3 {[%emt 0:00:44]} f5 {[%emt 0:03:26]} 20. Ra8 {[%emt 0:02:06]} Rxa8 {[%emt 0:00:59]} 21. Qxa8 {[%emt 0:00:03]} fxe4 {[%emt 0:03:26]} 22. Bxe4 {[%emt 0:00:54]} Nf5 {[%emt 0:03:32]} 23. Qb7 {[%emt 0:05:56]} dxc5 {[%emt 0:04:54]} 24. Bxc5 {[%emt 0:01:06]} Ncd6 {[%emt 0:00:58]} 25. Qa6 {[%emt 0:06:33]} Re8 {[%emt 0:02:51]} 26. f3 {[%emt 0:05:57]} Nd4 {[%emt 0:02:00]} 1/2-1/2

[Event "9. Korbacher Open 2017"]
[Site "Korbach"]
[Date "2017.10.22"]
[Round "7"]
[White "Bayer, Martin"]
[Black "Hoekstra, Peter"]
[Result "0-1"]
[ECO "B34"]
[WhiteElo "1732"]
[BlackElo "2074"]
[Annotator "NA"]
[PlyCount "92"]
[EventDate "2017.??.??"]
[EventType "swiss"]
[EventCountry "GER"]
[SourceTitle "playchess.com"]
[Source "ChessBase"]
[SourceQuality "1"]
[TimeControl "40/5400+30:1800+30"]

1. e4 {[%emt 0:00:14]} c5 {[%emt 0:01:16]} 2. Nf3 {[%emt 0:00:04]} g6 {[%emt 0:00:05]} 3. d4 {[%emt 0:00:05]} cxd4 {[%emt 0:00:04]} 4. Nxd4 {[%emt 0:00:03]} Nc6 {[%emt 0:00:05]} 5. Nc3 {[%emt 0:00:09]} Bg7 {[%emt 0:00:37]} 6. Be3 {[%emt 0:00:05]} Nf6 {[%emt 0:00:08]} 7. Be2 {[%emt 0:00:14]} O-O {[%emt 0:00:16]} 8. O-O {[%emt 0:01:05]} d5 {[%emt 0:01:03]} 9. exd5 {[%emt 0:03:54]} Nxd5 {[%emt 0:03:55]} 10. Nxd5 {[%emt 0:02:11]} Qxd5 {[%emt 0:00:37]} 11. Bf3 {[%emt 0:00:57]} Qc4 {[%emt 0:02:38]} 12. Nxc6 {[%emt 0:00:54]} bxc6 {[%emt 0:00:05]} 13. c3 {[%emt 0:00:46]} Rb8 {[%emt 0:00:46]} 14. Qd2 {[%emt 0:01:13]} Be6 {[%emt 0:02:31]} 15. b3 {[%emt 0:04:03]} Qxc3 {[%emt 0:03:05]} 16. Qxc3 {[%emt 0:00:37]} Bxc3 {[%emt 0:00:08]} 17. Rac1 {[%emt 0:00:17]} Bf6 {[%emt 0:01:54]} 18. Rxc6 {[%emt 0:00:39]} a5 {[%emt 0:02:23]} 19. Bb6 {[%emt 0:16:25]} Bd7 {[%emt 0:01:19]} 20. Rc7 {[%emt 0:00:31]} Rxb6 {[%emt 0:00:07]} 21. Rxd7 {[%emt 0:00:07]} Rc8 {[%emt 0:04:12]} 22. Bd5 {[%emt 0:04:21]} Rc2 {[%emt 0:04:30]} 23. a4 {[%emt 0:00:37]} Rd6 {[%emt 0:04:18]} 24. Rxd6 {[%emt 0:04:47]} exd6 {[%emt 0:00:11]} 25. Rd1 {[%emt 0:00:47]} Bd4 {[%emt 0:01:59]} 26. Rf1 {[%emt 0:00:33]} Rd2 {[%emt 0:00:52]} 27. Bc4 {[%emt 0:00:44]} Bc5 {[%emt 0:00:15]} 28. g3 {[%emt 0:01:40]} d5 {[%emt 0:03:34]} 29. Bb5 {[%emt 0:00:08]} Rb2 {[%emt 0:03:30]} 30. Bc6 {[%emt 0:00:30]} d4 {[%emt 0:03:43]} 31. Bd5 {[%emt 0:00:35]} d3 {[%emt 0:03:22]} 32. Bc4 {[%emt 0:02:38]} d2 {[%emt 0:00:52]} 33. Rd1 {[%emt 0:00:07]} Rc2 {[%emt 0:08:33]} 34. Kf1 {[%emt 0:00:13]} Rc1 {[%emt 0:00:07]} 35. Ke2 {[%emt 0:00:05]} Bb4 {[%emt 0:00:06]} 36. f3 {[%emt 0:00:56]} Kf8 {[%emt 0:01:46]} 37. h4 {[%emt 0:03:46]} f6 {[%emt 0:00:49]} 38. g4 {[%emt 0:00:31]} g5 {[%emt 0:00:24]} 39. h5 {[%emt 0:01:07]} h6 {[%emt 0:00:29]} 40. Bd5 {[%emt 0:01:58]} Ke7 {[%emt 0:30:13]} 41. Be4 {[%emt 0:32:22]} Kd6 {[%emt 0:00:13]} 42. Bd3 {[%emt 0:00:12]} Ke5 {[%emt 0:00:19]} 43. Bc4 {[%emt 0:02:22]} Kf4 {[%emt 0:02:05]} 44. Bd5 {[%emt 0:00:38]} Rc3 {[%emt 0:04:28]} 45. Rf1 {[%emt 0:01:55]} Re3+ {[%emt 0:00:48]} 46. Kd1 {[%emt 0:00:13]} Re1+ {[%emt 0:00:16]} 0-1

[Event "9. Korbacher Open 2017"]
[Site "Korbach"]
[Date "2017.10.22"]
[Round "7"]
[White "Boehme, Jonas"]
[Black "Petras, Nils"]
[Result "0-1"]
[ECO "B90"]
[WhiteElo "1675"]
[BlackElo "1922"]
[Annotator "NA"]
[PlyCount "76"]
[EventDate "2017.??.??"]
[EventType "swiss"]
[EventCountry "GER"]
[SourceTitle "playchess.com"]
[Source "ChessBase"]
[SourceQuality "1"]
[TimeControl "40/5400+30:1800+30"]

1. e4 {[%emt 0:00:00]} c5 {[%emt 0:00:17]} 2. Nf3 {[%emt 0:00:00]} d6 {[%emt 0:00:05]} 3. d4 {[%emt 0:00:00]} cxd4 {[%emt 0:00:04]} 4. Nxd4 {[%emt 0:00:00]} Nf6 {[%emt 0:00:04]} 5. Nc3 {[%emt 0:00:00]} a6 {[%emt 0:00:04]} 6. Be3 {[%emt 0:00:00]} e5 {[%emt 0:00:04]} 7. Nb3 {[%emt 0:01:07]} Be6 {[%emt 0:00:07]} 8. f3 {[%emt 0:03:54]} Nbd7 {[%emt 0:00:33]} 9. Qd2 {[%emt 0:01:06]} Be7 {[%emt 0:00:18]} 10. Be2 {[%emt 0:00:46]} b5 {[%emt 0:01:18]} 11. g4 {[%emt 0:00:54]} Nb6 {[%emt 0:01:44]} 12. g5 {[%emt 0:01:53]} Nfd7 {[%emt 0:00:07]} 13. f4 {[%emt 0:02:46]} exf4 {[%emt 0:02:02]} 14. Bxf4 {[%emt 0:01:30]} Ne5 {[%emt 0:00:34]} 15. Nd4 {[%emt 0:02:18]} Nbc4 {[%emt 0:03:09]} 16. Nxe6 {[%emt 0:02:15]} fxe6 {[%emt 0:00:15]} 17. Qd4 {[%emt 0:11:06]} Bxg5 {[%emt 0:01:40]} 18. Bxg5 {[%emt 0:01:53]} Qxg5 {[%emt 0:00:40]} 19. Rg1 {[%emt 0:00:02]} Qh4+ {[%emt 0:01:37]} 20. Kd1 {[%emt 0:09:22]} Qh6 {[%emt 0:03:24]} 21. Rg3 {[%emt 0:03:13]} O-O {[%emt 0:03:47]} 22. Bxc4 {[%emt 0:05:35]} Nxc4 {[%emt 0:01:20]} 23. b3 {[%emt 0:04:45]} Rf1+ {[%emt 0:01:33]} 24. Ke2 {[%emt 0:00:25]} Rxa1 {[%emt 0:00:05]} 25. Nd5 {[%emt 0:00:34]} Qd2+ {[%emt 0:01:52]} 26. Qxd2 {[%emt 0:01:44]} Nxd2 {[%emt 0:00:07]} 27. Nc7 {[%emt 0:00:03]} Rc8 {[%emt 0:02:12]} 28. Nxe6 {[%emt 0:00:15]} Rxc2 {[%emt 0:00:53]} 29. Rxg7+ {[%emt 0:00:02]} Kh8 {[%emt 0:00:09]} 30. Kd3 {[%emt 0:00:08]} Raxa2 {[%emt 0:00:18]} 31. Rd7 {[%emt 0:00:08]} Rc8 {[%emt 0:00:55]} 32. Ng5 {[%emt 0:01:35]} Nxb3 {[%emt 0:01:17]} 33. Nf7+ {[%emt 0:00:48]} Kg8 {[%emt 0:00:08]} 34. Nh6+ {[%emt 0:00:51]} Kf8 {[%emt 0:00:09]} 35. Rxh7 {[%emt 0:00:44]} Rd2+ {[%emt 0:00:07]} 36. Ke3 {[%emt 0:00:08]} Rc3+ {[%emt 0:00:05]} 37. Kf4 {[%emt 0:00:02]} Rxh2 {[%emt 0:01:06]} 38. Rh8+ {[%emt 0:00:10]} Kg7 {[%emt 0:00:06]} 0-1

[Event "9. Korbacher Open 2017"]
[Site "Korbach"]
[Date "2017.10.22"]
[Round "7"]
[White "Simukov, Erik"]
[Black "Achermann, Didier"]
[Result "1-0"]
[ECO "B84"]
[WhiteElo "1621"]
[BlackElo "1811"]
[Annotator "NA"]
[PlyCount "77"]
[EventDate "2017.??.??"]
[EventType "swiss"]
[EventCountry "GER"]
[SourceTitle "playchess.com"]
[Source "ChessBase"]
[SourceQuality "1"]
[TimeControl "40/5400+30:1800+30"]

1. e4 {[%emt 0:00:00]} c5 {[%emt 0:00:08]} 2. Nf3 {[%emt 0:00:49]} d6 {[%emt 0:00:24]} 3. d4 {[%emt 0:00:37]} cxd4 {[%emt 0:00:11]} 4. Nxd4 {[%emt 0:00:11]} Nf6 {[%emt 0:00:16]} 5. Nc3 {[%emt 0:00:24]} a6 {[%emt 0:00:17]} 6. Be2 {[%emt 0:00:22]} e6 {[%emt 0:00:26]} 7. Be3 {[%emt 0:02:58]} Be7 {[%emt 0:00:49]} 8. O-O {[%emt 0:01:20]} O-O {[%emt 0:00:11]} 9. f4 {[%emt 0:01:06]} Nbd7 {[%emt 0:01:00]} 10. Bf3 {[%emt 0:00:45]} Qc7 {[%emt 0:03:41]} 11. Kh1 {[%emt 0:03:54]} Nb6 {[%emt 0:04:58]} 12. Qe1 {[%emt 0:35:01]} Nc4 {[%emt 0:06:00]} 13. Bc1 {[%emt 0:00:45]} Nd7 {[%emt 0:03:29]} 14. b3 {[%emt 0:11:40]} Ncb6 {[%emt 0:00:19]} 15. Bb2 {[%emt 0:00:17]} Bf6 {[%emt 0:08:06]} 16. Qd2 {[%emt 0:05:23]} Re8 {[%emt 0:09:45]} 17. a4 {[%emt 0:01:16]} Nf8 {[%emt 0:00:41]} 18. a5 {[%emt 0:04:13]} Nbd7 {[%emt 0:00:13]} 19. g4 {[%emt 0:01:51]} Ng6 {[%emt 0:12:32]} 20. g5 {[%emt 0:04:00]} Be7 {[%emt 0:05:43]} 21. f5 {[%emt 0:01:29]} Ngf8 {[%emt 0:00:45]} 22. Bh5 {[%emt 0:07:27]} g6 {[%emt 0:08:17]} 23. Be2 {[%emt 0:04:00]} Ne5 {[%emt 0:02:22]} 24. f6 {[%emt 0:00:07]} Bd8 {[%emt 0:00:09]} 25. Qe3 {[%emt 0:01:01]} h5 {[%emt 0:04:47]} 26. Rf4 {[%emt 0:03:34]} Nh7 {[%emt 0:01:47]} 27. Qg3 {[%emt 0:02:36]} Nd7 {[%emt 0:05:10]} 28. Rh4 {[%emt 0:02:47]} Nhxf6 {[%emt 0:01:22]} 29. gxf6 {[%emt 0:00:06]} Nxf6 {[%emt 0:00:29]} 30. Bxh5 {[%emt 0:00:54]} Nxh5 {[%emt 0:00:11]} 31. Rxh5 {[%emt 0:00:11]} Bf6 {[%emt 0:03:56]} 32. Nde2 {[%emt 0:01:50]} Bd7 {[%emt 0:02:09]} 33. Nd5 {[%emt 0:00:09]} Bxb2 {[%emt 0:02:12]} 34. Nxc7 {[%emt 0:00:13]} Bxa1 {[%emt 0:00:10]} 35. Nxa8 {[%emt 0:00:06]} Be5 {[%emt 0:00:36]} 36. Rxe5 {[%emt 0:00:12]} dxe5 {[%emt 0:00:02]} 37. Nb6 {[%emt 0:00:11]} Bc6 {[%emt 0:00:28]} 38. Qxe5 {[%emt 0:00:08]} Rd8 {[%emt 0:00:16]} 39. Nd4 {[%emt 0:00:10]} 1-0

[Event "9. Korbacher Open 2017"]
[Site "Korbach"]
[Date "2017.10.22"]
[Round "7"]
[White "Sakhra, Roman"]
[Black "Mak, Nico"]
[Result "0-1"]
[ECO "E92"]
[WhiteElo "1489"]
[BlackElo "1799"]
[Annotator "NA"]
[PlyCount "64"]
[EventDate "2017.??.??"]
[EventType "swiss"]
[EventCountry "GER"]
[SourceTitle "playchess.com"]
[Source "ChessBase"]
[SourceQuality "1"]
[TimeControl "40/5400+30:1800+30"]

1. d4 {[%emt 0:00:00]} Nf6 {[%emt 0:01:07]} 2. Nf3 {[%emt 0:00:00]} g6 {[%emt 0:01:13]} 3. c4 {[%emt 0:00:00]} Bg7 {[%emt 0:00:05]} 4. Nc3 {[%emt 0:00:00]} d6 {[%emt 0:00:07]} 5. e4 {[%emt 0:00:03]} O-O {[%emt 0:00:11]} 6. Be2 {[%emt 0:00:01]} e5 {[%emt 0:00:19]} 7. d5 {[%emt 0:07:48]} a5 {[%emt 0:01:24]} 8. O-O {[%emt 0:01:00]} Nbd7 {[%emt 0:00:05]} 9. b3 {[%emt 0:06:45]} Nc5 {[%emt 0:01:09]} 10. Nd2 {[%emt 0:00:09]} Ne8 {[%emt 0:01:09]} 11. a3 {[%emt 0:04:27]} f5 {[%emt 0:01:27]} 12. f3 {[%emt 0:00:04]} Nf6 {[%emt 0:03:11]} 13. Rb1 {[%emt 0:00:41]} f4 {[%emt 0:02:42]} 14. b4 {[%emt 0:00:33]} axb4 {[%emt 0:00:42]} 15. axb4 {[%emt 0:00:05]} Ncd7 {[%emt 0:00:36]} 16. Nb3 {[%emt 0:01:11]} g5 {[%emt 0:01:58]} 17. c5 {[%emt 0:00:37]} Rf7 {[%emt 0:03:32]} 18. Nb5 {[%emt 0:07:20]} Bf8 {[%emt 0:01:49]} 19. Qc2 {[%emt 0:03:25]} Rg7 {[%emt 0:03:26]} 20. c6 {[%emt 0:01:38]} bxc6 {[%emt 0:07:13]} 21. Qxc6 {[%emt 0:00:46]} Nb6 {[%emt 0:00:22]} 22. Bd2 {[%emt 0:02:37]} g4 {[%emt 0:03:56]} 23. Rbc1 {[%emt 0:01:47]} gxf3 {[%emt 0:02:15]} 24. Rxf3 {[%emt 0:05:50]} Nxe4 {[%emt 0:03:10]} 25. Nxc7 {[%emt 0:00:45]} Ra2 {[%emt 0:09:01]} 26. Rd3 {[%emt 0:08:47]} Rxg2+ {[%emt 0:11:07]} 27. Kxg2 {[%emt 0:05:55]} Qg5+ {[%emt 0:00:24]} 28. Kf1 {[%emt 0:00:15]} Qh4 {[%emt 0:05:42]} 29. Rf3 {[%emt 0:04:08]} Bh3+ {[%emt 0:01:04]} 30. Kg1 {[%emt 0:01:32]} Qg5+ {[%emt 0:00:48]} 31. Rg3 {[%emt 0:00:34]} Nxg3 {[%emt 0:00:17]} 32. Kf2 {[%emt 0:01:35]} Ne4+ {[%emt 0:00:56]} 0-1

[Event "9. Korbacher Open 2017"]
[Site "Korbach"]
[Date "2017.10.22"]
[Round "7"]
[White "Hildebrand, Georg"]
[Black "Mohammadi, Sholeh"]
[Result "1-0"]
[ECO "A13"]
[WhiteElo "1477"]
[BlackElo "1190"]
[Annotator "NA"]
[PlyCount "139"]
[EventDate "2017.??.??"]
[EventType "swiss"]
[EventCountry "GER"]
[SourceTitle "playchess.com"]
[Source "ChessBase"]
[SourceQuality "1"]
[TimeControl "40/5400+30:1800+30"]

1. c4 {[%emt 0:00:21]} e6 {[%emt 0:00:00]} 2. g3 {[%emt 0:03:11]} c6 {[%emt 0:00:00]} 3. Bg2 {[%emt 0:00:50]} d5 {[%emt 0:01:51]} 4. cxd5 {[%emt 0:01:43]} cxd5 {[%emt 0:00:48]} 5. Nf3 {[%emt 0:01:22]} Nc6 {[%emt 0:06:54]} 6. O-O {[%emt 0:00:53]} Bd7 {[%emt 0:02:25]} 7. b3 {[%emt 0:01:06]} a5 {[%emt 0:01:00]} 8. Bb2 {[%emt 0:01:11]} Nf6 {[%emt 0:00:20]} 9. d3 {[%emt 0:02:50]} b5 {[%emt 0:01:20]} 10. a3 {[%emt 0:11:57]} b4 {[%emt 0:01:16]} 11. a4 {[%emt 0:01:00]} h6 {[%emt 0:02:06]} 12. Nbd2 {[%emt 0:00:56]} Rc8 {[%emt 0:01:06]} 13. Rc1 {[%emt 0:00:49]} Be7 {[%emt 0:01:20]} 14. Re1 {[%emt 0:05:12]} O-O {[%emt 0:08:36]} 15. e4 {[%emt 0:02:31]} Ng4 {[%emt 0:02:32]} 16. h3 {[%emt 0:06:43]} Bf6 {[%emt 0:00:17]} 17. e5 {[%emt 0:02:31]} Ngxe5 {[%emt 0:13:43]} 18. Nxe5 {[%emt 0:01:18]} Nxe5 {[%emt 0:04:27]} 19. Bxe5 {[%emt 0:03:38]} Rxc1 {[%emt 0:06:47]} 20. Qxc1 {[%emt 0:00:44]} Bg5 {[%emt 0:00:49]} 21. Qb2 {[%emt 0:05:57]} f6 {[%emt 0:03:33]} 22. Bd4 {[%emt 0:03:47]} Bc8 {[%emt 0:16:24]} 23. Nf3 {[%emt 0:01:07]} e5 {[%emt 0:02:53]} 24. Bc5 {[%emt 0:02:21]} Rf7 {[%emt 0:01:45]} 25. Nxg5 {[%emt 0:01:04]} hxg5 {[%emt 0:04:12]} 26. Qe2 {[%emt 0:07:10]} Rc7 {[%emt 0:04:03]} 27. Bb6 {[%emt 0:03:12]} Be6 {[%emt 0:06:52]} 28. d4 {[%emt 0:06:49]} Qd7 29. Bxc7 Qxc7 {[%emt 0:00:33]} 30. Qb5 {[%emt 0:17:17]} Qd8 {[%emt 0:01:38]} 31. Qc6 {[%emt 0:01:01]} Bf7 32. dxe5 {[%emt 0:00:35]} fxe5 {[%emt 0:01:27]} 33. Rxe5 {[%emt 0:01:09]} d4 {[%emt 0:00:00]} 34. Qa8 {[%emt 0:00:41]} Qxa8 {[%emt 0:00:15]} 35. Bxa8 {[%emt 0:00:11]} Bxb3 {[%emt 0:00:02]} 36. Rxa5 {[%emt 0:00:42]} d3 {[%emt 0:00:04]} 37. Bc6 {[%emt 0:00:05]} d2 {[%emt 0:00:40]} 38. Bf3 {[%emt 0:00:20]} Bc2 39. Rc5 Kh7 40. Rc8 b3 41. a5 b2 {[%emt 0:32:03]} 42. Rb8 {[%emt 0:34:43]} d1=Q+ 43. Bxd1 {[%emt 0:00:21]} Bxd1 {[%emt 0:01:07]} 44. Rxb2 {[%emt 0:00:19]} Bf3 {[%emt 0:00:53]} 45. Rb3 {[%emt 0:00:55]} Bd1 46. Rb6 {[%emt 0:00:16]} Bf3 {[%emt 0:01:14]} 47. Kf1 {[%emt 0:00:06]} g6 {[%emt 0:00:00]} 48. g4 {[%emt 0:00:40]} Kg7 {[%emt 0:00:11]} 49. a6 {[%emt 0:01:58]} Kf7 50. a7 {[%emt 0:00:00]} Be4 51. Rb3 Bd5 {[%emt 0:00:00]} 52. Rb5 {[%emt 0:00:00]} Bc6 {[%emt 0:00:00]} 53. Rxg5 {[%emt 0:00:00]} Kf6 54. Rc5 Be4 {[%emt 0:00:00]} 55. h4 {[%emt 0:00:00]} Ke6 56. Ra5 Kd6 57. a8=Q Bxa8 {[%emt 0:00:00]} 58. Rxa8 {[%emt 0:00:00]} Ke6 59. Ra6+ {[%emt 0:00:00]} Kf7 {[%emt 0:00:00]} 60. g5 Kg7 {[%emt 0:00:00]} 61. Ra7+ {[%emt 0:00:00]} Kf8 62. Ke2 Ke8 {[%emt 0:00:00]} 63. Ke3 {[%emt 0:00:00]} Kd8 64. Ke4 Kc8 65. Kd5 Kb8 {[%emt 0:00:00]} 66. Rg7 {[%emt 0:00:00]} Kc8 67. Kd6 Kb8 68. Kc6 {[%emt 0:00:00]} Ka8 {[%emt 0:00:00]} 69. Kb6 Kb8 70. Rg8# 1-0